lending/lending_fUSD_20260209
["ID","MTS","AMOUNT","RATE_DAILY","PERIOD"]
[404846987,1770618641130,-5000.0,0.000353,2]
[404846988,1770618641143,-4451.1065,0.00035507,10]
[404846989,1770618641152,-912.33,0.00035508,14]
[404846990,1770618641161,-500.0,0.00035577,19]
[404846991,1770618641171,-678.48627921,0.0003561,2]
[404846992,1770618641181,-181.21372751,0.0003566,8]
[404846993,1770618641191,-282.9,0.00035707,7]
[404846994,1770618641201,-166.66,0.00035711,2]
[404846995,1770618641210,-300.0,0.00035757,10]
[404846996,1770618641222,-300.0,0.00035757,10]
[404846997,1770618641233,-22878.5984663,0.00035758,2]
[404846998,1770618641243,-9296.5887406,0.00035758,2]
[404846999,1770618641253,-912.33,0.00035782,14]
[404847000,1770618641267,-596.46,0.000358,2]
[404847001,1770618641276,-500.0,0.00035808,2]
[404847002,1770618641287,-166.66,0.0003588,30]
[404847003,1770618641299,-8408.13,0.000359,2]
[404847004,1770618641308,-3409.23025173,0.00035905,2]
[404847005,1770618641318,-1839.19,0.00036055,2]
[404847006,1770618641327,-912.33268303,0.00036056,14]
[404847007,1770618641337,-226.15,0.00036125,2]
[404847008,1770618641346,-1797.18,0.00036154,2]
[404847009,1770618641355,-223.12649593,0.00036236,7]
[404847010,1770618641364,-502.0,0.00036247,2]
[404847011,1770618641374,-2122.352,0.00036443,45]
[404847012,1770618641383,-179.582,0.00036443,45]
[404847013,1770618641393,-3154.45461973,0.00036542,2]
[404847014,1770618641402,-158.41978573,0.00036615,2]
[404847015,1770618641411,-150.0,0.00036649,2]
[404847016,1770618641421,-5525.0278102,0.00036737,2]
[404847017,1770618641430,-1957.51585553,0.000368,2]
[404847018,1770618641439,-166.66,0.00036852,2]
[404847019,1770618641449,-300.0,0.00036887,10]
[404847020,1770618641458,-300.0,0.00036887,10]
[404847021,1770618641468,-57286.12636477,0.00036888,60]
[404847022,1770618641478,-183.04,0.00036888,2]
[404847023,1770618641487,-14145.44550815,0.0003691,2]
[404847024,1770618641496,-282.9,0.00036956,7]
[404847025,1770618641505,-165.88476011,0.00037,2]
[404847026,1770618641514,-204.0,0.00037176,7]
[404847027,1770618641523,-1433.94378736,0.00037228,2]
[404847028,1770618641541,-1053.88,0.00037283,120]
[404847029,1770618641553,-596.46,0.000373,2]
[404847030,1770618641563,-3240.0,0.00037325,120]
[404847031,1770618641572,-168.0,0.00037384,2]
[404847032,1770618641582,-203.0,0.00037479,2]
[404847033,1770618641592,-226.15,0.00037495,2]
[404847034,1770618641602,-325.08,0.00037667,2]
[404847035,1770618641612,-8408.13,0.000377,2]
[404847036,1770618641622,-204.0,0.0003777,2]
[404847037,1770618641632,-181.21372751,0.00037828,11]
[404847038,1770618641641,-187.81,0.00037933,2]
[404847039,1770618641651,-3409.23025173,0.0003799,2]
[404847040,1770618641660,-166.66,0.00037994,2]
[404847041,1770618641670,-168.0,0.00038107,2]
[404847042,1770618641679,-282.9,0.00038205,30]
[404847043,1770618641689,-3463.42742698,0.00038233,2]
[404847044,1770618641698,-5676.43704429,0.00038274,2]
[404847045,1770618641708,-1683.51186893,0.00038332,30]
[404847046,1770618641717,-194.61,0.000384,14]
[404847047,1770618641727,-150.0,0.00038482,2]
[404847048,1770618641736,-151.0,0.00038494,120]
[404847049,1770618641745,-5000.0,0.00038494,120]
[404847050,1770618641756,-5000.0,0.00038494,120]
[404847051,1770618641766,-5000.0,0.00038494,120]
[404847052,1770618641776,-5000.0,0.00038494,120]
[404847053,1770618641787,-5000.0,0.00038494,120]
[404847054,1770618641796,-5000.0,0.00038494,120]
[404847055,1770618641805,-5000.0,0.00038494,120]
[404847056,1770618641815,-5000.0,0.00038494,120]
[404847057,1770618641826,-5000.0,0.00038494,120]
[404847058,1770618641835,-5000.0,0.00038494,120]
[404847059,1770618641846,-5000.0,0.00038494,120]
[404847060,1770618641856,-5000.0,0.00038494,120]
[404847061,1770618641866,-3085.669753,0.00038494,120]
[404847062,1770618641875,-177.909811,0.00038494,7]
[404847063,1770618641885,-177.909811,0.00038494,7]
[404847064,1770618641895,-177.909811,0.00038494,7]
[404847065,1770618641905,-177.909811,0.00038494,7]
[404847066,1770618641915,-183.04,0.00038565,2]
[404847067,1770618641925,-250.39701181,0.00038895,2]
[404847068,1770618641934,-3154.45461973,0.00038971,2]
[404847069,1770618641943,-1295.73873761,0.00039,120]
[404847070,1770618641954,-237.52375325,0.00039038,2]
[404847071,1770618641965,-2056.28695353,0.00039087,2]
[404847072,1770618641976,-323.26075896,0.00039098,2]
[404847073,1770618641987,-250.0,0.00039098,2]
[404847074,1770618641996,-250.0,0.00039098,2]
[404847075,1770618642006,-250.0,0.00039098,2]
[404847076,1770618642016,-250.0,0.00039098,2]
[404847077,1770618642027,-250.0,0.00039098,2]
[404847078,1770618642038,-500.0,0.00039098,2]
[404847079,1770618642047,-250.0,0.00039098,2]
[404847080,1770618642056,-250.0,0.00039098,2]
[404847081,1770618642065,-500.0,0.00039098,2]
[404847082,1770618642074,-250.0,0.00039098,2]
[404847083,1770618642088,-250.0,0.00039098,2]
[404847084,1770618642097,-500.0,0.00039098,2]
[404847085,1770618642107,-250.0,0.00039098,2]
[404847086,1770618642117,-250.0,0.00039098,2]
[404847087,1770618642126,-500.0,0.00039098,2]
[404847088,1770618642136,-250.0,0.00039098,2]
[404847089,1770618642146,-250.0,0.00039098,2]
[404847090,1770618642156,-500.0,0.00039098,2]
[404847091,1770618642165,-250.0,0.00039098,2]
[404847092,1770618642175,-250.0,0.00039098,2]
[404847093,1770618642185,-250.0,0.00039098,2]
[404847094,1770618642196,-500.0,0.00039098,2]
[404847095,1770618642206,-250.0,0.00039098,2]
[404847096,1770618642217,-250.0,0.00039098,2]
[404847097,1770618642239,-250.0,0.00039098,2]
[404847098,1770618642261,-500.0,0.00039098,2]
[404847099,1770618642279,-261.1907146,0.00039098,2]
[404847100,1770618642297,-500.0,0.00039098,2]
[404847101,1770618642312,-254.89289563,0.00039098,2]
[404847102,1770618642323,-500.0,0.00039098,2]
[404847103,1770618642332,-500.0,0.00039098,2]
[404847104,1770618642343,-500.0,0.00039098,2]
[404847105,1770618642355,-500.0,0.00039098,2]
[404847106,1770618642368,-500.0,0.00039098,2]
[404847107,1770618642379,-511.2491398,0.00039098,2]
[404847108,1770618642388,-500.0,0.00039098,2]
[404847109,1770618642398,-250.0,0.00039098,2]
[404847110,1770618642408,-250.0,0.00039098,2]
[404847111,1770618642418,-250.0,0.00039098,2]
[404847112,1770618642439,-250.0,0.00039098,2]
[404847113,1770618642459,-250.0,0.00039098,2]
[404847114,1770618642476,-250.0,0.00039098,2]
[404847115,1770618642488,-250.0,0.00039098,2]
[404847116,1770618642501,-250.0,0.00039098,2]
[404847117,1770618642511,-250.0,0.00039098,2]
[404847118,1770618642523,-250.0,0.00039098,2]
[404847119,1770618642535,-250.0,0.00039098,2]
[404847120,1770618642545,-250.0,0.00039098,2]
[404847121,1770618642556,-250.0,0.00039098,2]
[404847122,1770618642566,-250.0,0.00039098,2]
[404847123,1770618642578,-250.0,0.00039098,2]
[404847124,1770618642590,-250.0,0.00039098,2]
[404847125,1770618642601,-250.0,0.00039098,2]
[404847126,1770618642612,-250.0,0.00039098,2]
[404847127,1770618642623,-250.0,0.00039098,2]
[404847128,1770618642633,-250.0,0.00039098,2]
[404847129,1770618642642,-250.0,0.00039098,2]
[404847130,1770618642651,-250.0,0.00039098,2]
[404847131,1770618642661,-596.46,0.000391,30]
[404847132,1770618642671,-166.66,0.00039135,2]
[404847133,1770618642682,-158.41978573,0.00039191,2]
[404847134,1770618642691,-544.94,0.00039203,2]
[404847135,1770618642701,-282.9,0.00039454,30]
[404847136,1770618642710,-8408.13,0.000397,2]
[404847137,1770618642720,-151.0,0.00039726,120]
[404847138,1770618642729,-151.0,0.00039726,120]
[404847139,1770618642739,-151.0,0.00039726,120]
[404847140,1770618642749,-251.165894,0.00039726,120]
[404847141,1770618642758,-151.0,0.00039726,120]
[404847142,1770618642768,-151.0,0.00039726,120]
[404847143,1770618642777,-202.24707,0.00039726,120]
[404847144,1770618642787,-151.0,0.00039726,120]
[404847145,1770618642797,-151.0,0.00039726,120]
[404847146,1770618642806,-151.0,0.00039726,120]
[404847147,1770618642816,-151.0,0.00039726,120]
[404847148,1770618642825,-156.016667,0.00039726,120]
[404847149,1770618642835,-257.651606,0.00039726,120]
[404847150,1770618642844,-228.686269,0.00039726,120]
[404847151,1770618642853,-243.55594,0.00039726,120]
[404847152,1770618642862,-151.0,0.00039726,31]
[404847153,1770618642871,-151.0,0.00039726,31]
[404847154,1770618642880,-151.0,0.00039726,120]
[404847155,1770618642890,-151.0,0.00039726,120]
[404847156,1770618642899,-151.0,0.00039726,120]
[404847157,1770618642908,-229.055541,0.00039726,120]
[404847158,1770618642917,-6887.71091701,0.00039811,2]
[404847160,1770618642927,-3039.6,0.00039861,2]
[404847161,1770618642939,-187.81,0.00039966,2]
[404847162,1770618642949,-410.14377815,0.00039991,2]
[404847163,1770618642959,-517.04147964,0.00039991,2]
[404847164,1770618642970,-305.3249493,0.00039991,2]
[404847165,1770618642981,-536.27346676,0.00039991,2]
[404847166,1770618642991,-1078.78219747,0.00039991,2]
[404847167,1770618643000,-853.10618092,0.00039991,2]
[404847168,1770618643009,-305.17282608,0.00039991,2]
[404847169,1770618643019,-881.82002944,0.00039991,2]
[404847170,1770618643028,-1556.71760867,0.00039991,2]
[404847171,1770618643037,-306.34825984,0.00039991,2]
[404847172,1770618643047,-457.40429292,0.00039991,2]
[404847173,1770618643057,-370.28201213,0.00039991,2]
[404847174,1770618643067,-517.04147964,0.00039991,2]
[404847175,1770618643076,-305.32494931,0.00039991,2]
[404847176,1770618643087,-572.19561471,0.00039991,2]
[404847177,1770618643097,-1078.78219747,0.00039991,2]
[404847178,1770618643107,-300.0,0.00039991,2]
[404847179,1770618643118,-691.88987432,0.00039991,2]
[404847180,1770618643128,-408.61657874,0.00039991,2]
[404847181,1770618643139,-572.19561471,0.00039991,2]
[404847182,1770618643150,-1078.78219747,0.00039991,2]
[404847183,1770618643159,-877.76047172,0.00039991,2]
[404847184,1770618643389,-181.21372751,0.00039995,13]
[404847185,1770618643401,-151.0,0.00039997,14]
[404847186,1770618643411,-300.0,0.00039999,10]
[404847187,1770618643422,-300.0,0.00039999,10]
[404847188,1770618643431,-11770.57276714,0.00039999,2]
[404847189,1770618643440,-250.0,0.0004,45]
[404847190,1770618643450,-154.0,0.0004,120]
[404847191,1770618643460,-153.0,0.0004,120]
[404847192,1770618643471,-25000.0,0.0004,120]
[404847193,1770618643480,-500.0,0.0004,5]
[404847194,1770618643490,-500.0,0.0004,5]
[404847195,1770618643500,-500.0,0.0004,2]
[404847196,1770618643509,-500.0,0.0004,5]
[404847197,1770618643520,-501.26387074,0.0004,5]
[404847198,1770618643529,-11101.54174558,0.0004,120]
[404847199,1770618643540,-5000.0,0.0004,3]
[404847200,1770618643549,-150.63279502,0.0004,30]
[404847201,1770618643558,-138525.40948965,0.0004,120]
[404847202,1770618643568,-4907.06312106,0.0004,120]
[404847203,1770618643578,-10893.3127493,0.0004,120]
[404847204,1770618643587,-203.5,0.0004,120]
[404847205,1770618643596,-166.95992965,0.0004,5]
[404847206,1770618643605,-500.30350429,0.0004,5]
[404847207,1770618643615,-500.0,0.0004,5]
[404847208,1770618643625,-22500.0,0.0004,120]
[404847209,1770618643635,-170.725861,0.0004,120]
[404847210,1770618643645,-151.0,0.0004,120]
[404847211,1770618643656,-12500.0,0.0004,120]
[404847212,1770618643665,-151.0,0.0004,120]
[404847213,1770618643675,-151.0,0.0004,120]
[404847214,1770618643685,-151.0,0.0004,120]
[404847215,1770618643695,-151.0,0.0004,120]
[404847216,1770618643704,-22500.0,0.0004,120]
[404847217,1770618643714,-151.0,0.0004,120]
[404847218,1770618643723,-160.932919,0.0004,120]
[404847219,1770618643732,-151.0,0.0004,120]
[404847220,1770618643741,-151.0,0.0004,31]
[404847221,1770618643750,-151.0,0.0004,31]
[404847222,1770618643759,-151.0,0.0004,120]
[404847223,1770618643769,-156.586791,0.0004,120]
[404847224,1770618643778,-500.0,0.0004,5]
[404847225,1770618643788,-500.0,0.0004,5]
[404847226,1770618643796,-500.0,0.0004,5]
[404847227,1770618643806,-500.0,0.0004,5]
[404847228,1770618643817,-500.0,0.0004,5]
[404847229,1770618643826,-491.56017181,0.0004,5]
[404847230,1770618643835,-177.909811,0.0004,7]
[404847231,1770618643844,-177.909811,0.0004,7]
[404847232,1770618643853,-177.909811,0.0004,7]
[404847233,1770618643862,-500.0,0.0004,5]
[404847234,1770618643871,-500.0,0.0004,5]
[404847235,1770618643880,-245.6057209,0.0004,5]
[404847236,1770618643889,-500.0,0.0004,5]
[404847237,1770618643898,-177.909811,0.0004,7]
[404847238,1770618643907,-500.0,0.0004,5]
[404847239,1770618643917,-500.0,0.0004,5]
[404847240,1770618643925,-500.0,0.0004,5]
[404847241,1770618643934,-500.78823516,0.0004,5]
[404847242,1770618643943,-500.0,0.0004,5]
[404847243,1770618643952,-151.0,0.0004,120]
[404847244,1770618643961,-150.0,0.00040009,7]
[404847245,1770618643971,-150.0,0.00040009,7]
[404847246,1770618643980,-150.0,0.00040009,7]
[404847247,1770618643989,-150.0,0.00040009,7]
[404847248,1770618643998,-150.0,0.00040009,7]
[404847249,1770618644008,-152.23094233,0.00040009,7]
[404847250,1770618644017,-152.50050934,0.00040009,7]
[404847251,1770618644027,-150.0,0.00040009,7]
[404847252,1770618644039,-153.7216878,0.00040009,7]
[404847253,1770618644048,-150.0,0.00040009,7]
[404847254,1770618644057,-3409.23025173,0.00040074,2]
[404847255,1770618644066,-351.78,0.00040106,14]
[404847256,1770618644075,-150.0,0.00040187,7]
[404847257,1770618644084,-183.04,0.00040242,2]
[404847258,1770618644094,-166.66,0.00040276,2]
[404847259,1770618644103,-5104.9053397,0.00040297,2]
[404847260,1770618644114,-150.0,0.00040365,7]
[404847261,1770618644125,-300.0,0.00040374,10]
[404847263,1770618644134,-300.0,0.00040374,10]
[404847265,1770618644143,-22500.0,0.00040375,120]
[404847266,1770618644153,-12500.0,0.00040375,120]
[404847267,1770618644162,-2074.3493345,0.0004039,2]
[404847268,1770618644172,-150.0,0.00040406,2]
[404847269,1770618644184,-150.0,0.00040454,7]
[404847270,1770618644195,-150.0,0.00040454,7]
[404847271,1770618644204,-250.0,0.000405,45]
[404847272,1770618644213,-2000.0,0.000405,2]
[404847273,1770618644227,-510.0,0.00040514,11]
[404847274,1770618644236,-150.0,0.00040543,7]
[404847275,1770618644246,-501.70650637,0.00040548,5]
[404847276,1770618644258,-1000.0,0.00040548,5]
[404847277,1770618644271,-1000.0,0.00040548,2]
[404847278,1770618644284,-1000.0,0.00040548,5]
[404847279,1770618644294,-1002.44563879,0.00040548,5]
[404847280,1770618644303,-1000.0,0.00040548,5]
[404847281,1770618644312,-1002.31857723,0.00040548,5]
[404847282,1770618644324,-431.50854257,0.00040548,5]
[404847283,1770618644334,-995.94024498,0.00040548,5]
[404847284,1770618644345,-208.13539422,0.00040548,5]
[404847285,1770618644355,-500.48740819,0.00040548,5]
[404847286,1770618644365,-339.0629942,0.00040548,5]
[404847287,1770618644375,-1000.0,0.00040548,5]
[404847288,1770618644388,-1000.0,0.00040548,5]
[404847289,1770618644399,-1000.0,0.00040548,5]
[404847290,1770618644408,-157.67351188,0.00040548,5]
[404847291,1770618644419,-1003.87713345,0.00040548,5]
[404847292,1770618644429,-1000.0,0.00040548,2]
[404847293,1770618644438,-151.0,0.00040548,120]
[404847294,1770618644447,-150.0,0.00040565,7]
[404847295,1770618644457,-150.0,0.00040565,7]
[404847296,1770618644467,-282.9,0.00040703,120]
[404847297,1770618644477,-150.0,0.00040721,7]
[404847298,1770618644488,-300.0,0.00040749,10]
[404847299,1770618644497,-25000.0,0.0004075,120]
[404847300,1770618644508,-22500.0,0.0004075,120]
[404847301,1770618644516,-12500.0,0.0004075,120]
[404847302,1770618644526,-150.0,0.0004075,7]
[404847303,1770618644536,-150.0,0.0004075,7]
[404847304,1770618644546,-1340.031,0.00040761,2]
[404847305,1770618644556,-1412.0,0.00040761,2]
[404847306,1770618644565,-2448.0,0.00040761,2]
[404847307,1770618644575,-1433.94378736,0.00040786,28]
[404847308,1770618644585,-1403.77203837,0.000408,120]
[404847309,1770618644595,-1079.4,0.0004083,120]
[404847310,1770618644604,-150.0,0.00040899,7]
[404847311,1770618644614,-150.0,0.00040899,7]
[404847312,1770618644623,-150.0,0.00040899,7]
[404847313,1770618644632,-250.0,0.00041,45]
[404847314,1770618644642,-1179.45918291,0.00041,30]
[404847315,1770618644652,-1079.4,0.00041023,120]
[404847316,1770618644661,-150.0,0.00041076,7]
[404847317,1770618644670,-505.27,0.00041096,120]
[404847318,1770618644680,-500.0,0.00041096,2]
[404847319,1770618644689,-234.34,0.00041096,120]
[404847320,1770618644699,-1339.249876,0.00041096,120]
[404847321,1770618644708,-1339.249876,0.00041096,120]
[404847322,1770618644718,-1500.0,0.00041096,10]
[404847323,1770618644727,-653.13192661,0.00041096,2]
[404847324,1770618644736,-1002.57509796,0.00041096,10]
[404847325,1770618644746,-1500.0,0.00041096,10]
[404847326,1770618644757,-1500.0,0.00041096,10]
[404847327,1770618644767,-256.53185435,0.00041096,10]
[404847328,1770618644779,-513.58819273,0.00041096,10]
[404847329,1770618644790,-154.0,0.000411,120]
[404847330,1770618644799,-150.0,0.00041121,30]
[404847331,1770618644808,-150.0,0.00041121,30]
[404847332,1770618644816,-151.0,0.00041122,14]
[404847333,1770618644826,-300.0,0.00041124,30]
[404847334,1770618644836,-151.0,0.00041125,60]
[404847335,1770618644845,-151.0,0.00041125,60]
[404847336,1770618644855,-22500.0,0.00041125,120]
[404847337,1770618644866,-12500.0,0.00041125,120]
[404847338,1770618644875,-1339.249876,0.00041125,120]
[404847339,1770618644886,-153.0,0.000412,120]
[404847340,1770618644897,-187.64871677,0.000412,30]
[404847341,1770618644909,-1079.4,0.00041217,120]
[404847342,1770618644919,-151.0,0.00041233,120]
[404847343,1770618644928,-151.0,0.00041233,120]
[404847344,1770618644938,-151.0,0.00041233,120]
[404847345,1770618644947,-151.0,0.00041233,120]
[404847346,1770618644958,-150.0,0.00041254,30]
[404847347,1770618644967,-1139.058346,0.0004131,2]
[404847348,1770618644976,-7811.0,0.00041324,7]
[404847349,1770618644986,-150.0,0.00041343,30]
[404847350,1770618644997,-150.0,0.00041343,30]
[404847351,1770618645007,-7341.93861928,0.00041348,2]
[404847352,1770618645018,-320.5,0.00041385,60]
[404847353,1770618645028,-3154.45461973,0.000414,15]
[404847354,1770618645039,-1079.4,0.0004141,120]
[404847355,1770618645049,-1692.63823523,0.00041414,120]
[404847356,1770618645059,-462.8498992,0.00041423,2]
[404847357,1770618645069,-150.0,0.00041432,30]
[404847358,1770618645080,-460.0,0.00041444,120]
[404847359,1770618645089,-150.0,0.00041491,30]
[404847360,1770618645099,-150.0,0.00041491,30]
[404847361,1770618645108,-300.0,0.00041499,30]
[404847362,1770618645117,-250.0,0.000415,45]
[404847363,1770618645127,-552.42918957,0.000415,120]
[404847364,1770618645136,-24999.99,0.000415,120]
[404847365,1770618645146,-151.0,0.000415,60]
[404847366,1770618645156,-151.0,0.000415,60]
[404847367,1770618645166,-155.222338,0.000415,120]
[404847368,1770618645176,-151.0,0.000415,120]
[404847369,1770618645186,-22500.0,0.000415,120]
[404847370,1770618645196,-151.0,0.000415,120]
[404847371,1770618645207,-151.0,0.000415,120]
[404847372,1770618645217,-12500.0,0.000415,120]
[404847373,1770618645231,-151.0,0.000415,120]
[404847374,1770618645242,-151.0,0.000415,120]
[404847375,1770618645252,-151.0,0.000415,120]
[404847376,1770618645262,-211.5003302,0.000415,120]
[404847377,1770618645273,-209.533233,0.000415,120]
[404847378,1770618645284,-151.0,0.000415,120]
[404847379,1770618645296,-151.0,0.000415,120]
[404847380,1770618645305,-151.0,0.000415,31]
[404847381,1770618645315,-151.0,0.000415,31]
[404847382,1770618645324,-173.527123,0.000415,120]
[404847383,1770618645334,-177.909811,0.000415,7]
[404847384,1770618645344,-177.909811,0.000415,7]
[404847385,1770618645354,-177.909811,0.000415,7]
[404847386,1770618645363,-177.909811,0.000415,7]
[404847387,1770618645373,-151.0,0.000415,120]
[404847388,1770618645382,-152.0,0.00041546,3]
[404847389,1770618645392,-1079.4,0.00041603,120]
[404847390,1770618645402,-150.0,0.0004161,30]
[404847391,1770618645412,-2000.0,0.00041644,10]
[404847392,1770618645421,-2000.0,0.00041644,10]
[404847393,1770618645431,-2000.0,0.00041644,10]
[404847394,1770618645441,-150.0,0.00041677,30]
[404847395,1770618645450,-150.0,0.00041677,30]
[404847396,1770618645460,-189.66,0.00041689,120]
[404847397,1770618645469,-158.41978573,0.00041768,4]
[404847398,1770618645479,-150.0,0.00041788,30]
[404847399,1770618645488,-150.0,0.00041788,30]
[404847400,1770618645497,-150.0,0.00041788,30]
[404847401,1770618645506,-189.67534468,0.00041789,120]
[404847402,1770618645516,-1079.4,0.00041797,120]
[404847403,1770618645525,-22500.0,0.00041875,120]
[404847404,1770618645535,-12500.0,0.00041875,120]
[404847405,1770618645545,-183.04,0.00041918,2]
[404847406,1770618645555,-1053.88,0.00041943,120]
[404847407,1770618645564,-282.9,0.00041951,120]
[404847408,1770618645573,-150.0,0.00041966,30]
[404847409,1770618645583,-1079.4,0.0004199,120]
[404847410,1770618645592,-331.21756462,0.00041999,120]
[404847411,1770618645602,-333.7117022,0.00042,120]
[404847412,1770618645612,-151.38916921,0.00042,30]
[404847413,1770618645621,-1000.0,0.00042056,2]
[404847414,1770618645631,-221.0,0.00042127,7]
[404847415,1770618645642,-150.0,0.00042143,30]
[404847416,1770618645652,-3409.23025173,0.00042159,2]
[404847417,1770618645661,-151.0,0.00042162,120]
[404847418,1770618645671,-151.0,0.00042162,120]
[404847419,1770618645680,-181.21372751,0.00042163,16]
[404847420,1770618645690,-1079.4,0.00042183,120]
[404847421,1770618645700,-1000.0,0.00042192,30]
[404847422,1770618645710,-1002.336663,0.00042192,10]
[404847423,1770618645719,-2500.0,0.00042192,10]
[404847424,1770618645730,-2512.94110038,0.00042192,10]
[404847425,1770618645739,-154.0,0.000422,120]
[404847426,1770618645749,-150.0,0.00042232,30]
[404847427,1770618645760,-150.0,0.00042232,30]
[404847428,1770618645770,-150.0,0.00042232,30]
[404847429,1770618645780,-150.0,0.00042232,30]
[404847430,1770618645790,-150.0,0.00042232,30]
[404847431,1770618645800,-150.0,0.00042232,30]
[404847432,1770618645809,-1204.26,0.0004225,120]
[404847433,1770618645819,-628.85,0.0004225,120]
[404847434,1770618645828,-153.0,0.000423,120]
[404847435,1770618645837,-298.10020657,0.00042316,14]
[404847436,1770618645847,-300.0,0.00042318,30]
[404847437,1770618645856,-666.0,0.00042318,30]
[404847438,1770618645866,-150.0,0.00042321,30]
[404847439,1770618645875,-1079.4,0.00042377,120]
[404847440,1770618645885,-500.0,0.00042438,120]
[404847441,1770618645894,-500.0,0.00042438,120]
[404847442,1770618645903,-1000.0,0.00042466,30]
[404847443,1770618645912,-5000.0,0.00042466,120]
[404847444,1770618645922,-150.0,0.00042499,30]
[404847446,1770618645932,-2164.13072908,0.000425,120]
[404847447,1770618645941,-157.19768788,0.000425,120]
[404847448,1770618645951,-222.0,0.00042521,7]
[404847449,1770618645961,-1079.4,0.0004257,120]
[404847450,1770618645971,-500.0,0.00042575,120]
[404847451,1770618645981,-500.0,0.00042575,120]
[404847452,1770618645990,-8408.13,0.000426,2]
[404847453,1770618645999,-500.0,0.00042603,3]
[404847454,1770618646009,-150.0,0.00042677,30]
[404847455,1770618646018,-150.0,0.00042677,30]
[404847456,1770618646027,-150.0,0.00042677,30]
[404847457,1770618646037,-500.0,0.00042712,120]
[404847458,1770618646047,-500.0,0.00042712,120]
[404847459,1770618646056,-1000.0,0.0004274,30]
[404847460,1770618646065,-2500.0,0.0004274,7]
[404847461,1770618646075,-3000.0,0.0004274,10]
[404847462,1770618646085,-221.0,0.00042755,2]
[404847463,1770618646095,-1079.4,0.00042763,120]
[404847464,1770618646104,-150.0,0.00042788,30]
[404847465,1770618646114,-150.0,0.00042788,30]
[404847466,1770618646123,-3295.0486665,0.000428,30]
[404847467,1770618646133,-132973.08067199,0.000428,7]
[404847468,1770618646144,-151.0,0.000428,120]
[404847469,1770618646154,-151.0,0.000428,120]
[404847470,1770618646164,-151.0,0.000428,120]
[404847471,1770618646174,-151.0,0.000428,120]
[404847472,1770618646183,-151.0,0.000428,120]
[404847473,1770618646192,-151.0,0.000428,120]
[404847474,1770618646202,-151.0,0.000428,31]
[404847475,1770618646211,-151.0,0.000428,31]
[404847476,1770618646222,-177.909811,0.000428,7]
[404847477,1770618646234,-177.909811,0.000428,7]
[404847478,1770618646244,-177.909811,0.000428,7]
[404847479,1770618646254,-177.909811,0.000428,7]
[404847480,1770618646264,-151.0,0.000428,120]
[404847481,1770618646275,-1339.249876,0.000428,120]
[404847482,1770618646285,-467.0,0.00042803,15]
[404847483,1770618646295,-500.0,0.00042811,60]
[404847484,1770618646305,-500.0,0.00042811,60]
[404847485,1770618646315,-840.0,0.00042843,16]
[404847486,1770618646326,-500.0,0.00042849,120]
[404847487,1770618646335,-500.0,0.00042849,120]
[404847488,1770618646344,-150.0,0.00042855,30]
[404847489,1770618646354,-151.0,0.00042872,60]
[404847490,1770618646364,-151.0,0.00042872,60]